[Event "Titled Tuesday Blitz August 15 Late 2023"]
[White "FuenfgegenWilly"]
[Black "Rustemov, Alexander"]
[BlackFideId "4119002"]
[WhiteElo "2426"]
[BlackElo "2775"]
[Result "0-1"]
[Round "1"]
[TimeControl "180+1"]
[Date "2023.08.15"]
[WhiteClock "0:00:44"]
[BlackClock "0:00:57"]
[Board "61"]

1. d4 {[%clk 0:02:57]}  g6 {[%clk 0:02:58]} 2. c4 {[%clk 0:02:56]}  Bg7 {[%clk 0:02:58]} 3. Nc3 {[%clk 0:02:57]}  c5 {[%clk 0:02:58]} 4. d5 {[%clk 0:02:55]}  Bxc3+ {[%clk 0:02:58]} 5. bxc3 {[%clk 0:02:56]}  f5 {[%clk 0:02:59]} 6. h4 {[%clk 0:02:55]}  Nf6 {[%clk 0:02:58]} 7. f3 {[%clk 0:02:49]}  Qa5 {[%clk 0:02:57]} 8. Qc2 {[%clk 0:02:48]}  d6 {[%clk 0:02:57]} 9. Bd2 {[%clk 0:02:40]}  Nbd7 {[%clk 0:02:56]} 10. e4 {[%clk 0:02:40]}  Ne5 {[%clk 0:02:46]} 11. Be2 {[%clk 0:02:34]}  Bd7 {[%clk 0:02:34]} 12. Rb1 {[%clk 0:02:28]}  O-O-O {[%clk 0:02:34]} 13. Nh3 {[%clk 0:02:22]}  fxe4 {[%clk 0:02:32]} 14. fxe4 {[%clk 0:02:21]}  Bxh3 {[%clk 0:02:32]} 15. Rxh3 {[%clk 0:02:20]}  Rhf8 {[%clk 0:02:18]} 16. Rb5 {[%clk 0:02:20]}  Qc7 {[%clk 0:02:16]} 17. Bg5 {[%clk 0:02:03]}  Rf7 {[%clk 0:02:12]} 18. Qa4 {[%clk 0:01:57]}  Kb8 {[%clk 0:02:09]} 19. Kd2 {[%clk 0:01:48]}  Nxe4+ {[%clk 0:02:08]} 20. Kc1 {[%clk 0:01:41]}  Nxg5 {[%clk 0:01:58]} 21. hxg5 {[%clk 0:01:42]}  Rdf8 {[%clk 0:01:52]} 22. Rb2 {[%clk 0:01:38]}  Rf2 {[%clk 0:01:44]} 23. Rxh7 {[%clk 0:01:18]}  Rxg2 {[%clk 0:01:41]} 24. Qd1 {[%clk 0:01:18]}  Rxg5 {[%clk 0:01:37]} 25. Qe1 {[%clk 0:01:18]}  Rgf5 {[%clk 0:01:31]} 26. Qh4 {[%clk 0:01:17]}  R5f7 {[%clk 0:01:28]} 27. Rh8 {[%clk 0:01:11]}  Qd8 {[%clk 0:01:25]} 28. Rh7 {[%clk 0:01:03]}  Rxh7 {[%clk 0:01:18]} 29. Qxh7 {[%clk 0:01:04]}  Rh8 {[%clk 0:01:15]} 30. Qg7 {[%clk 0:01:02]}  Qf8 {[%clk 0:01:15]} 31. Qxf8+ {[%clk 0:01:00]}  Rxf8 {[%clk 0:01:16]} 32. Kd2 {[%clk 0:01:00]}  Rf4 {[%clk 0:01:14]} 33. Rb1 {[%clk 0:01:00]}  Nxc4+ {[%clk 0:01:11]} 34. Bxc4 {[%clk 0:01:01]}  Rxc4 {[%clk 0:01:11]} 35. Rg1 {[%clk 0:01:02]}  Ra4 {[%clk 0:01:04]} 36. Rxg6 {[%clk 0:01:02]}  Rxa2+ {[%clk 0:01:04]} 37. Kd3 {[%clk 0:01:03]}  Kc7 {[%clk 0:01:05]} 38. Rg7 {[%clk 0:00:58]}  Kd7 {[%clk 0:01:05]} 39. Rg8 {[%clk 0:00:58]}  Rb2 {[%clk 0:01:03]} 40. Ra8 {[%clk 0:00:55]}  a6 {[%clk 0:01:02]} 41. c4 {[%clk 0:00:54]}  Rb3+ {[%clk 0:00:58]} 42. Kc2 {[%clk 0:00:52]}  Rb4 {[%clk 0:00:58]} 43. Kc3 {[%clk 0:00:52]}  b5 {[%clk 0:00:58]} 44. Ra7+ {[%clk 0:00:50]}  Ke8 {[%clk 0:00:58]} 45. cxb5 {[%clk 0:00:45]}  axb5 {[%clk 0:00:58]} 46. Rb7 {[%clk 0:00:46]}  Kf7 {[%clk 0:00:57]} 47. Kd3 {[%clk 0:00:45]}  Rd4+ {[%clk 0:00:56]} 48. Ke3 {[%clk 0:00:46]}  b4 {[%clk 0:00:57]} 49. Rb5 {[%clk 0:00:44]}  Rxd5 {[%clk 0:00:57]} 0-1


[Site "https://www.chess.com"]

[Event "Titled Tuesday Blitz August 15 Late 2023"]
[White "Arnold, Ken"]
[Black "Badmatsyrenov, Oleg"]
[WhiteFideId "2056836"]
[BlackFideId "24115762"]
[WhiteElo "2423"]
[BlackElo "2762"]
[Result "0-1"]
[Round "1"]
[TimeControl "180+1"]
[Date "2023.08.15"]
[WhiteClock "0:00:13"]
[BlackClock "0:00:20"]
[Board "63"]

1. d4 {[%clk 0:02:57]}  Nf6 {[%clk 0:02:59]} 2. c4 {[%clk 0:02:55]}  c5 {[%clk 0:03:00]} 3. d5 {[%clk 0:02:51]}  e6 {[%clk 0:03:00]} 4. Nc3 {[%clk 0:02:45]}  exd5 {[%clk 0:03:01]} 5. cxd5 {[%clk 0:02:44]}  d6 {[%clk 0:03:02]} 6. e4 {[%clk 0:02:44]}  g6 {[%clk 0:03:03]} 7. Bd3 {[%clk 0:02:44]}  Bg7 {[%clk 0:03:03]} 8. Nge2 {[%clk 0:02:44]}  O-O {[%clk 0:03:02]} 9. O-O {[%clk 0:02:44]}  a6 {[%clk 0:03:02]} 10. a4 {[%clk 0:02:44]}  Nbd7 {[%clk 0:03:02]} 11. Bf4 {[%clk 0:02:43]}  Ne8 {[%clk 0:03:01]} 12. Qc2 {[%clk 0:02:33]}  Rb8 {[%clk 0:03:00]} 13. a5 {[%clk 0:02:28]}  b6 {[%clk 0:02:55]} 14. axb6 {[%clk 0:02:25]}  Rxb6 {[%clk 0:02:56]} 15. Ra2 {[%clk 0:02:13]}  Ne5 {[%clk 0:02:55]} 16. Ng3 {[%clk 0:01:48]}  Nc7 {[%clk 0:02:53]} 17. Rfa1 {[%clk 0:01:45]}  h5 {[%clk 0:02:46]} 18. h3 {[%clk 0:01:37]}  h4 {[%clk 0:02:44]} 19. Nf1 {[%clk 0:01:36]}  g5 {[%clk 0:02:29]} 20. Be3 {[%clk 0:01:34]}  g4 {[%clk 0:02:28]} 21. hxg4 {[%clk 0:01:28]}  Nxg4 {[%clk 0:02:28]} 22. Be2 {[%clk 0:01:21]}  Nxe3 {[%clk 0:02:24]} 23. Nxe3 {[%clk 0:01:21]}  Qg5 {[%clk 0:02:24]} 24. Qd1 {[%clk 0:01:12]}  h3 {[%clk 0:01:51]} 25. g3 {[%clk 0:01:12]}  Bd4 {[%clk 0:01:51]} 26. Qd2 {[%clk 0:01:03]}  Nb5 {[%clk 0:01:40]} 27. Nxb5 {[%clk 0:01:00]}  axb5 {[%clk 0:01:41]} 28. Kh2 {[%clk 0:00:59]}  f5 {[%clk 0:01:31]} 29. exf5 {[%clk 0:00:54]}  Bxf5 {[%clk 0:01:19]} 30. Ra8 {[%clk 0:00:53]}  Bc8 {[%clk 0:01:11]} 31. f4 {[%clk 0:00:51]}  Qg7 {[%clk 0:01:00]} 32. Bf3 {[%clk 0:00:45]}  Rb7 {[%clk 0:00:58]} 33. Nd1 {[%clk 0:00:42]}  Re7 {[%clk 0:00:52]} 34. Rxc8 {[%clk 0:00:41]}  Rxc8 {[%clk 0:00:50]} 35. g4 {[%clk 0:00:28]}  Rf8 {[%clk 0:00:42]} 36. Kg3 {[%clk 0:00:28]}  Ref7 {[%clk 0:00:20]} 37. f5 {[%clk 0:00:13]}  Rxf5 {[%clk 0:00:20]} 0-1


[Site "https://www.chess.com"]

[Event "Titled Tuesday Blitz August 15 Late 2023"]
[White "Haydon, David L"]
[Black "MrAnnihilation"]
[WhiteFideId "415405"]
[WhiteElo "2756"]
[BlackElo "2422"]
[Result "1/2-1/2"]
[Round "1"]
[TimeControl "180+1"]
[Date "2023.08.15"]
[WhiteClock "0:00:13"]
[BlackClock "0:00:18"]
[Board "64"]

1. e4 {[%clk 0:02:58]}  d6 {[%clk 0:02:59]} 2. d4 {[%clk 0:02:47]}  Nf6 {[%clk 0:02:59]} 3. Nc3 {[%clk 0:02:47]}  e5 {[%clk 0:03:00]} 4. dxe5 {[%clk 0:02:46]}  dxe5 {[%clk 0:03:00]} 5. Qf3 {[%clk 0:02:43]}  Be6 {[%clk 0:02:45]} 6. h3 {[%clk 0:02:40]}  c6 {[%clk 0:02:34]} 7. Bd3 {[%clk 0:02:37]}  Nbd7 {[%clk 0:02:34]} 8. Be3 {[%clk 0:02:36]}  Qa5 {[%clk 0:02:21]} 9. Ne2 {[%clk 0:02:34]}  Bc5 {[%clk 0:02:19]} 10. g4 {[%clk 0:02:31]}  Bxe3 {[%clk 0:02:10]} 11. Qxe3 {[%clk 0:02:29]}  Qb6 {[%clk 0:02:11]} 12. Qg3 {[%clk 0:02:10]}  Qxb2 {[%clk 0:01:56]} 13. Rb1 {[%clk 0:02:09]}  Qa3 {[%clk 0:01:57]} 14. Rxb7 {[%clk 0:02:08]}  O-O {[%clk 0:01:57]} 15. O-O {[%clk 0:02:06]}  Rab8 {[%clk 0:01:36]} 16. Rfb1 {[%clk 0:02:00]}  Rxb7 {[%clk 0:01:35]} 17. Rxb7 {[%clk 0:01:59]}  h6 {[%clk 0:01:26]} 18. Qe3 {[%clk 0:01:54]}  Nc5 {[%clk 0:01:21]} 19. Rc7 {[%clk 0:01:50]}  Rc8 {[%clk 0:01:19]} 20. Rxc8+ {[%clk 0:01:44]}  Bxc8 {[%clk 0:01:20]} 21. Qg3 {[%clk 0:01:40]}  Nfd7 {[%clk 0:01:12]} 22. Bc4 {[%clk 0:01:37]}  Ba6 {[%clk 0:01:11]} 23. Bxa6 {[%clk 0:01:33]}  Qxa6 {[%clk 0:01:12]} 24. Qe3 {[%clk 0:01:29]}  Qc4 {[%clk 0:01:12]} 25. f3 {[%clk 0:01:25]}  Nf8 {[%clk 0:01:08]} 26. f4 {[%clk 0:01:16]}  exf4 {[%clk 0:01:03]} 27. Nxf4 {[%clk 0:01:16]}  Nfe6 {[%clk 0:01:03]} 28. Nfe2 {[%clk 0:01:15]}  a5 {[%clk 0:01:02]} 29. a3 {[%clk 0:01:12]}  Nd7 {[%clk 0:00:55]} 30. Qd3 {[%clk 0:01:07]}  Qc5+ {[%clk 0:00:54]} 31. Kg2 {[%clk 0:01:05]}  Ne5 {[%clk 0:00:54]} 32. Qg3 {[%clk 0:01:02]}  g5 {[%clk 0:00:53]} 33. a4 {[%clk 0:01:00]}  Ng6 {[%clk 0:00:46]} 34. Qf2 {[%clk 0:00:51]}  Nef4+ {[%clk 0:00:45]} 35. Kf1 {[%clk 0:00:50]}  Qc4 {[%clk 0:00:43]} 36. Qd4 {[%clk 0:00:46]}  Qb4 {[%clk 0:00:41]} 37. Qxb4 {[%clk 0:00:45]}  axb4 {[%clk 0:00:42]} 38. Nxf4 {[%clk 0:00:43]}  Nxf4 {[%clk 0:00:42]} 39. Ne2 {[%clk 0:00:37]}  Ne6 {[%clk 0:00:38]} 40. a5 {[%clk 0:00:37]}  c5 {[%clk 0:00:36]} 41. a6 {[%clk 0:00:36]}  Nc7 {[%clk 0:00:37]} 42. a7 {[%clk 0:00:35]}  Kf8 {[%clk 0:00:38]} 43. Nc1 {[%clk 0:00:35]}  c4 {[%clk 0:00:37]} 44. Ke2 {[%clk 0:00:33]}  Ke7 {[%clk 0:00:37]} 45. Ke3 {[%clk 0:00:34]}  Kd6 {[%clk 0:00:37]} 46. Kd4 {[%clk 0:00:34]}  b3 {[%clk 0:00:31]} 47. cxb3 {[%clk 0:00:33]}  cxb3 {[%clk 0:00:32]} 48. Nxb3 {[%clk 0:00:31]}  Nb5+ {[%clk 0:00:33]} 49. Ke3 {[%clk 0:00:31]}  Nxa7 {[%clk 0:00:33]} 50. Nd4 {[%clk 0:00:31]}  Ke5 {[%clk 0:00:24]} 51. Nf5 {[%clk 0:00:30]}  Nb5 {[%clk 0:00:20]} 52. Nxh6 {[%clk 0:00:27]}  f6 {[%clk 0:00:20]} 53. Nf5 {[%clk 0:00:24]}  Nc3 {[%clk 0:00:18]} 54. Nh6 {[%clk 0:00:18]}  Nxe4 {[%clk 0:00:16]} 55. Nf7+ {[%clk 0:00:18]}  Kd5 {[%clk 0:00:16]} 56. Kf3 {[%clk 0:00:16]}  Nd6 {[%clk 0:00:15]} 57. Nxd6 {[%clk 0:00:10]}  Kxd6 {[%clk 0:00:15]} 58. Ke4 {[%clk 0:00:10]}  Ke6 {[%clk 0:00:16]} 59. Kd4 {[%clk 0:00:11]}  Kd6 {[%clk 0:00:16]} 60. Ke4 {[%clk 0:00:11]}  Ke6 {[%clk 0:00:16]} 61. Kd4 {[%clk 0:00:11]}  f5 {[%clk 0:00:15]} 62. gxf5+ {[%clk 0:00:11]}  Kxf5 {[%clk 0:00:16]} 63. Ke3 {[%clk 0:00:12]}  g4 {[%clk 0:00:15]} 64. h4 {[%clk 0:00:12]}  g3 {[%clk 0:00:16]} 65. Kf3 {[%clk 0:00:12]}  g2 {[%clk 0:00:16]} 66. Kxg2 {[%clk 0:00:12]}  Kg4 {[%clk 0:00:17]} 67. h5 {[%clk 0:00:13]}  Kxh5 {[%clk 0:00:18]} 1/2-1/2


[Site "https://www.chess.com"]

[Event "Titled Tuesday Blitz August 15 Late 2023"]
[White "Harriott, Tyrell"]
[Black "Kushko, Dmitriy"]
[WhiteFideId "2086484"]
[BlackFideId "14162261"]
[WhiteElo "2421"]
[BlackElo "2755"]
[Result "0-1"]
[Round "1"]
[TimeControl "180+1"]
[Date "2023.08.15"]
[WhiteClock "0:00:05"]
[BlackClock "0:00:20"]
[Board "65"]

1. d4 {[%clk 0:03:00]}  g6 {[%clk 0:02:43]} 2. e3 {[%clk 0:03:01]}  Bg7 {[%clk 0:02:43]} 3. Bd3 {[%clk 0:03:02]}  Nf6 {[%clk 0:02:43]} 4. f4 {[%clk 0:03:03]}  O-O {[%clk 0:02:43]} 5. Nf3 {[%clk 0:03:04]}  d5 {[%clk 0:02:41]} 6. O-O {[%clk 0:03:04]}  c5 {[%clk 0:02:41]} 7. c3 {[%clk 0:03:04]}  b6 {[%clk 0:02:40]} 8. Nbd2 {[%clk 0:03:04]}  Ba6 {[%clk 0:02:40]} 9. Bxa6 {[%clk 0:03:04]}  Nxa6 {[%clk 0:02:40]} 10. b3 {[%clk 0:03:05]}  e6 {[%clk 0:02:37]} 11. Bb2 {[%clk 0:03:05]}  Rc8 {[%clk 0:02:29]} 12. Ne5 {[%clk 0:03:05]}  Nb8 {[%clk 0:02:26]} 13. Qe2 {[%clk 0:03:05]}  Nfd7 {[%clk 0:02:24]} 14. Qg4 {[%clk 0:03:04]}  Nc6 {[%clk 0:02:22]} 15. Qh3 {[%clk 0:03:03]}  cxd4 {[%clk 0:02:19]} 16. exd4 {[%clk 0:03:03]}  f5 {[%clk 0:02:18]} 17. g4 {[%clk 0:03:02]}  Nf6 {[%clk 0:02:17]} 18. gxf5 {[%clk 0:03:02]}  exf5 {[%clk 0:02:17]} 19. Ba3 {[%clk 0:03:01]}  Re8 {[%clk 0:02:16]} 20. Rae1 {[%clk 0:02:54]}  Nxe5 {[%clk 0:02:14]} 21. fxe5 {[%clk 0:02:54]}  Ng4 {[%clk 0:02:08]} 22. Kh1 {[%clk 0:02:30]}  Qd7 {[%clk 0:02:00]} 23. Qf3 {[%clk 0:02:21]}  Bh6 {[%clk 0:01:53]} 24. Re2 {[%clk 0:02:17]}  Bg5 {[%clk 0:01:48]} 25. Rg1 {[%clk 0:02:11]}  Kh8 {[%clk 0:01:36]} 26. h3 {[%clk 0:02:07]}  Bxd2 {[%clk 0:01:36]} 27. Rxd2 {[%clk 0:02:03]}  Nh6 {[%clk 0:01:36]} 28. Re1 {[%clk 0:01:48]}  Nf7 {[%clk 0:01:35]} 29. Bb2 {[%clk 0:01:16]}  Ng5 {[%clk 0:01:34]} 30. Qg2 {[%clk 0:01:11]}  Ne4 {[%clk 0:01:33]} 31. Rd3 {[%clk 0:01:11]}  Re6 {[%clk 0:01:25]} 32. Rf3 {[%clk 0:01:10]}  Rec6 {[%clk 0:01:23]} 33. Ree3 {[%clk 0:01:06]}  b5 {[%clk 0:01:20]} 34. a3 {[%clk 0:01:04]}  a5 {[%clk 0:01:20]} 35. b4 {[%clk 0:00:54]}  axb4 {[%clk 0:01:19]} 36. axb4 {[%clk 0:00:54]}  Ra8 {[%clk 0:01:18]} 37. Rf1 {[%clk 0:00:52]}  Ra2 {[%clk 0:01:16]} 38. Re2 {[%clk 0:00:40]}  Qd8 {[%clk 0:01:02]} 39. Rf4 {[%clk 0:00:32]}  Qe7 {[%clk 0:00:43]} 40. Kh2 {[%clk 0:00:31]}  Qe6 {[%clk 0:00:36]} 41. Qf3 {[%clk 0:00:24]}  Nxc3 {[%clk 0:00:25]} 42. Bxc3 {[%clk 0:00:19]}  Rxc3 {[%clk 0:00:24]} 43. Qxc3 {[%clk 0:00:14]}  Rxe2+ {[%clk 0:00:24]} 44. Kg3 {[%clk 0:00:15]}  g5 {[%clk 0:00:20]} 45. Rf1 {[%clk 0:00:12]}  f4+ {[%clk 0:00:19]} 46. Kf3 {[%clk 0:00:12]}  Re3+ {[%clk 0:00:19]} 47. Qxe3 {[%clk 0:00:11]}  Qxh3+ {[%clk 0:00:20]} 48. Kf2 {[%clk 0:00:09]}  Qxe3+ {[%clk 0:00:19]} 49. Kg2 {[%clk 0:00:10]}  Qg3+ {[%clk 0:00:19]} 50. Kh1 {[%clk 0:00:05]}  f3 {[%clk 0:00:20]} 0-1


[Site "https://www.chess.com"]

[Event "Titled Tuesday Blitz August 15 Late 2023"]
[White "Mazurkiewicz, Michal"]
[Black "Morefield, Jason"]
[WhiteFideId "1124943"]
[BlackFideId "30920825"]
[WhiteElo "2414"]
[BlackElo "2750"]
[Result "0-1"]
[Round "1"]
[TimeControl "180+1"]
[Date "2023.08.15"]
[WhiteClock "0:00:26"]
[BlackClock "0:00:15"]
[Board "67"]

1. e4 {[%clk 0:03:00]}  d6 {[%clk 0:02:59]} 2. d4 {[%clk 0:03:00]}  Nf6 {[%clk 0:02:59]} 3. Nc3 {[%clk 0:02:59]}  g6 {[%clk 0:03:00]} 4. f4 {[%clk 0:02:59]}  Bg7 {[%clk 0:03:00]} 5. Nf3 {[%clk 0:03:00]}  c5 {[%clk 0:03:00]} 6. Bb5+ {[%clk 0:02:59]}  Bd7 {[%clk 0:03:00]} 7. Bxd7+ {[%clk 0:02:56]}  Qxd7 {[%clk 0:02:56]} 8. e5 {[%clk 0:02:56]}  Nh5 {[%clk 0:02:46]} 9. dxc5 {[%clk 0:02:55]}  dxe5 {[%clk 0:02:40]} 10. fxe5 {[%clk 0:02:50]}  f5 {[%clk 0:01:58]} 11. Be3 {[%clk 0:02:37]}  Qc6 {[%clk 0:01:37]} 12. O-O {[%clk 0:02:28]}  Nd7 {[%clk 0:01:35]} 13. Nd4 {[%clk 0:02:18]}  Qc8 {[%clk 0:01:26]} 14. g4 {[%clk 0:01:51]}  fxg4 {[%clk 0:01:17]} 15. Ne6 {[%clk 0:01:44]}  Nxe5 {[%clk 0:01:03]} 16. Nxg7+ {[%clk 0:01:42]}  Nxg7 {[%clk 0:01:04]} 17. Bd4 {[%clk 0:01:37]}  Nf3+ {[%clk 0:00:46]} 18. Rxf3 {[%clk 0:01:36]}  gxf3 {[%clk 0:00:47]} 19. Bxg7 {[%clk 0:01:25]}  Qg4+ {[%clk 0:00:33]} 20. Kf2 {[%clk 0:01:23]}  Rg8 {[%clk 0:00:32]} 21. Qd4 {[%clk 0:01:02]}  Qg2+ {[%clk 0:00:26]} 22. Ke3 {[%clk 0:01:02]}  Rd8 {[%clk 0:00:23]} 23. Qa4+ {[%clk 0:00:53]}  Kf7 {[%clk 0:00:20]} 24. Bd4 {[%clk 0:00:53]}  f2 {[%clk 0:00:17]} 25. Rf1 {[%clk 0:00:35]}  Qxf1 {[%clk 0:00:15]} 26. Qc4+ {[%clk 0:00:26]}  Qxc4 {[%clk 0:00:15]} 0-1


[Site "https://www.chess.com"]

[Event "Titled Tuesday Blitz August 15 Late 2023"]
[White "Schmakel, Sam"]
[Black "Andrews, Todd"]
[WhiteFideId "2039311"]
[BlackFideId "2012456"]
[WhiteElo "2747"]
[BlackElo "2410"]
[Result "1-0"]
[Round "1"]
[TimeControl "180+1"]
[Date "2023.08.15"]
[WhiteClock "0:00:18"]
[BlackClock "0:00:23"]
[Board "68"]

1. d4 {[%clk 0:02:59]}  Nf6 {[%clk 0:02:59]} 2. Nc3 {[%clk 0:02:48]}  d5 {[%clk 0:02:59]} 3. Bf4 {[%clk 0:02:47]}  c6 {[%clk 0:02:58]} 4. e3 {[%clk 0:02:41]}  g6 {[%clk 0:02:58]} 5. h4 {[%clk 0:02:39]}  b5 {[%clk 0:02:57]} 6. h5 {[%clk 0:02:31]}  Nxh5 {[%clk 0:02:54]} 7. Rxh5 {[%clk 0:02:31]}  gxh5 {[%clk 0:02:53]} 8. Qxh5 {[%clk 0:02:32]}  b4 {[%clk 0:02:49]} 9. Na4 {[%clk 0:02:26]}  Nd7 {[%clk 0:02:49]} 10. Nf3 {[%clk 0:02:24]}  Nf6 {[%clk 0:02:48]} 11. Qh2 {[%clk 0:02:21]}  Bf5 {[%clk 0:02:45]} 12. O-O-O {[%clk 0:02:20]}  Qa5 {[%clk 0:02:38]} 13. b3 {[%clk 0:02:20]}  Rg8 {[%clk 0:02:34]} 14. Bc7 {[%clk 0:02:16]}  Ng4 {[%clk 0:02:30]} 15. Bxa5 {[%clk 0:01:46]}  Nxh2 {[%clk 0:02:29]} 16. Nxh2 {[%clk 0:01:47]}  e6 {[%clk 0:02:12]} 17. Nf3 {[%clk 0:01:19]}  f6 {[%clk 0:02:06]} 18. g3 {[%clk 0:01:16]}  Bg4 {[%clk 0:02:00]} 19. Be2 {[%clk 0:01:16]}  Kd7 {[%clk 0:01:51]} 20. Ng1 {[%clk 0:01:02]}  Bf5 {[%clk 0:01:29]} 21. Bd3 {[%clk 0:00:59]}  Bg6 {[%clk 0:01:25]} 22. Nf3 {[%clk 0:00:51]}  Rb8 {[%clk 0:01:23]} 23. c3 {[%clk 0:00:48]}  bxc3 {[%clk 0:01:15]} 24. Bxc3 {[%clk 0:00:49]}  Ba3+ {[%clk 0:01:13]} 25. Kc2 {[%clk 0:00:47]}  Bd6 {[%clk 0:01:10]} 26. Rh1 {[%clk 0:00:45]}  Rg7 {[%clk 0:01:05]} 27. Nh4 {[%clk 0:00:42]}  Bxd3+ {[%clk 0:01:03]} 28. Kxd3 {[%clk 0:00:43]}  e5 {[%clk 0:00:59]} 29. Nf5 {[%clk 0:00:42]}  Rf7 {[%clk 0:00:57]} 30. Nxd6 {[%clk 0:00:38]}  Kxd6 {[%clk 0:00:58]} 31. dxe5+ {[%clk 0:00:38]}  fxe5 {[%clk 0:00:59]} 32. Rh6+ {[%clk 0:00:38]}  Kd7 {[%clk 0:00:44]} 33. Nc5+ {[%clk 0:00:37]}  Ke7 {[%clk 0:00:41]} 34. Bxe5 {[%clk 0:00:37]}  Rb5 {[%clk 0:00:40]} 35. f4 {[%clk 0:00:31]}  Rb6 {[%clk 0:00:37]} 36. g4 {[%clk 0:00:26]}  a5 {[%clk 0:00:31]} 37. g5 {[%clk 0:00:26]}  Rb4 {[%clk 0:00:30]} 38. Rxc6 {[%clk 0:00:22]}  a4 {[%clk 0:00:30]} 39. Rc7+ {[%clk 0:00:19]}  Ke8 {[%clk 0:00:30]} 40. Rxf7 {[%clk 0:00:19]}  Kxf7 {[%clk 0:00:31]} 41. Nxa4 {[%clk 0:00:19]}  Rb7 {[%clk 0:00:29]} 42. Nc5 {[%clk 0:00:19]}  Ra7 {[%clk 0:00:29]} 43. a4 {[%clk 0:00:20]}  Kg6 {[%clk 0:00:28]} 44. Kd4 {[%clk 0:00:20]}  Kf5 {[%clk 0:00:28]} 45. Kxd5 {[%clk 0:00:19]}  Rxa4 {[%clk 0:00:23]} 46. bxa4 {[%clk 0:00:18]} 1-0


[Site "https://www.chess.com"]

[Event "Titled Tuesday Blitz August 15 Late 2023"]
[White "Dzierzak, Radoslaw"]
[Black "Stearman, Josiah"]
[WhiteFideId "1161407"]
[BlackFideId "2062496"]
[WhiteElo "2410"]
[BlackElo "2743"]
[Result "0-1"]
[Round "1"]
[TimeControl "180+1"]
[Date "2023.08.15"]
[WhiteClock "0:00:03"]
[BlackClock "0:00:47"]
[Board "69"]

1. e4 {[%clk 0:03:00]}  c5 {[%clk 0:02:58]} 2. Nf3 {[%clk 0:03:01]}  Nc6 {[%clk 0:02:58]} 3. d4 {[%clk 0:03:01]}  cxd4 {[%clk 0:02:59]} 4. Nxd4 {[%clk 0:03:01]}  g6 {[%clk 0:02:59]} 5. Nc3 {[%clk 0:02:57]}  Bg7 {[%clk 0:02:59]} 6. Nde2 {[%clk 0:02:58]}  Nf6 {[%clk 0:03:00]} 7. g3 {[%clk 0:02:57]}  O-O {[%clk 0:03:00]} 8. Bg2 {[%clk 0:02:58]}  d6 {[%clk 0:03:00]} 9. O-O {[%clk 0:02:58]}  h6 {[%clk 0:03:00]} 10. h3 {[%clk 0:02:58]}  Kh7 {[%clk 0:03:00]} 11. Be3 {[%clk 0:02:50]}  Qa5 {[%clk 0:03:00]} 12. Nd5 {[%clk 0:02:43]}  Nxd5 {[%clk 0:02:55]} 13. exd5 {[%clk 0:02:44]}  Ne5 {[%clk 0:02:56]} 14. Bd4 {[%clk 0:02:23]}  Bf5 {[%clk 0:02:50]} 15. b3 {[%clk 0:02:22]}  Rac8 {[%clk 0:02:48]} 16. c4 {[%clk 0:02:22]}  b5 {[%clk 0:02:43]} 17. f4 {[%clk 0:02:14]}  Nd7 {[%clk 0:02:29]} 18. Bxg7 {[%clk 0:02:11]}  Kxg7 {[%clk 0:02:30]} 19. g4 {[%clk 0:02:04]}  bxc4 {[%clk 0:02:24]} 20. gxf5 {[%clk 0:01:41]}  c3 {[%clk 0:02:23]} 21. Qd4+ {[%clk 0:01:30]}  Nf6 {[%clk 0:02:19]} 22. Rfc1 {[%clk 0:01:20]}  c2 {[%clk 0:02:19]} 23. b4 {[%clk 0:01:13]}  Qa3 {[%clk 0:01:59]} 24. Kh2 {[%clk 0:01:08]}  Rc7 {[%clk 0:01:56]} 25. Be4 {[%clk 0:00:59]}  Rfc8 {[%clk 0:01:48]} 26. fxg6 {[%clk 0:00:55]}  Rc4 {[%clk 0:01:47]} 27. Qd3 {[%clk 0:00:39]}  Rc3 {[%clk 0:01:22]} 28. Nxc3 {[%clk 0:00:37]}  Rxc3 {[%clk 0:01:23]} 29. Qd4 {[%clk 0:00:09]}  Rxh3+ {[%clk 0:01:21]} 30. Kg1 {[%clk 0:00:10]}  Qg3+ {[%clk 0:01:15]} 31. Bg2 {[%clk 0:00:10]}  Qh2+ {[%clk 0:01:13]} 32. Kf1 {[%clk 0:00:09]}  Rh4 {[%clk 0:01:11]} 33. Qg1 {[%clk 0:00:08]}  Rxf4+ {[%clk 0:01:09]} 34. Ke2 {[%clk 0:00:07]}  Qh5+ {[%clk 0:01:09]} 35. Kd2 {[%clk 0:00:07]}  Qg5 {[%clk 0:00:55]} 36. Kxc2 {[%clk 0:00:07]}  Rg4 {[%clk 0:00:55]} 37. Kb3 {[%clk 0:00:07]}  Rxg2 {[%clk 0:00:54]} 38. Qd4 {[%clk 0:00:08]}  Rd2 {[%clk 0:00:51]} 39. Qc3 {[%clk 0:00:05]}  Qxd5+ {[%clk 0:00:50]} 40. Ka3 {[%clk 0:00:05]}  Rd3 {[%clk 0:00:50]} 41. gxf7 {[%clk 0:00:04]}  Rxc3+ {[%clk 0:00:47]} 42. Rxc3 {[%clk 0:00:03]}  Kxf7 {[%clk 0:00:47]} 0-1


[Site "https://www.chess.com"]

[Event "Titled Tuesday Blitz August 15 Late 2023"]
[White "Klinova, Masha"]
[Black "Ghazarian, Kirk"]
[WhiteFideId "2802015"]
[BlackFideId "30908604"]
[WhiteElo "2407"]
[BlackElo "2740"]
[Result "0-1"]
[Round "1"]
[TimeControl "180+1"]
[Date "2023.08.15"]
[WhiteClock "0:01:30"]
[BlackClock "0:01:04"]
[Board "71"]

1. e4 {[%clk 0:03:00]}  c5 {[%clk 0:02:59]} 2. Nf3 {[%clk 0:03:00]}  a6 {[%clk 0:02:59]} 3. c4 {[%clk 0:02:59]}  Nc6 {[%clk 0:02:59]} 4. Nc3 {[%clk 0:02:59]}  e5 {[%clk 0:02:58]} 5. d3 {[%clk 0:02:57]}  d6 {[%clk 0:02:57]} 6. g3 {[%clk 0:02:57]}  Nf6 {[%clk 0:02:57]} 7. Bg2 {[%clk 0:02:57]}  g6 {[%clk 0:02:57]} 8. O-O {[%clk 0:02:57]}  Bg7 {[%clk 0:02:58]} 9. Bg5 {[%clk 0:02:56]}  h6 {[%clk 0:02:57]} 10. Bxf6 {[%clk 0:02:54]}  Bxf6 {[%clk 0:02:58]} 11. Nd5 {[%clk 0:02:54]}  Bg7 {[%clk 0:02:57]} 12. Ne1 {[%clk 0:02:54]}  O-O {[%clk 0:02:57]} 13. Nc2 {[%clk 0:02:54]}  b5 {[%clk 0:02:56]} 14. b3 {[%clk 0:02:53]}  Rb8 {[%clk 0:02:46]} 15. Rb1 {[%clk 0:02:51]}  Bd7 {[%clk 0:02:46]} 16. Nce3 {[%clk 0:02:46]}  Nd4 {[%clk 0:02:46]} 17. f4 {[%clk 0:02:37]}  f5 {[%clk 0:02:42]} 18. exf5 {[%clk 0:02:34]}  gxf5 {[%clk 0:02:41]} 19. Qh5 {[%clk 0:02:27]}  Be8 {[%clk 0:02:31]} 20. Qd1 {[%clk 0:02:20]}  Bg6 {[%clk 0:02:26]} 21. Kh1 {[%clk 0:02:15]}  Kh7 {[%clk 0:02:20]} 22. Bh3 {[%clk 0:02:14]}  Rb7 {[%clk 0:02:11]} 23. Rf2 {[%clk 0:02:10]}  Qe8 {[%clk 0:02:03]} 24. Qd2 {[%clk 0:02:09]}  bxc4 {[%clk 0:01:47]} 25. dxc4 {[%clk 0:02:07]}  e4 {[%clk 0:01:47]} 26. Rg1 {[%clk 0:01:54]}  Nf3 {[%clk 0:01:45]} 27. Rxf3 {[%clk 0:01:54]}  exf3 {[%clk 0:01:46]} 28. Rf1 {[%clk 0:01:53]}  Qe4 {[%clk 0:01:37]} 29. Qf2 {[%clk 0:01:49]}  Bh5 {[%clk 0:01:22]} 30. Nxf5 {[%clk 0:01:48]}  Rxf5 {[%clk 0:01:14]} 31. g4 {[%clk 0:01:48]}  Rxd5 {[%clk 0:01:09]} 32. cxd5 {[%clk 0:01:44]}  Bf7 {[%clk 0:01:04]} 33. Re1 {[%clk 0:01:30]}  Qxf4 {[%clk 0:01:04]} 0-1


[Site "https://www.chess.com"]